[Event "93rd German Championship 2022"]
[Site "Magdeburg"]
[Date "2022.08.14"]
[Round "1.1"]
[White "Richter, Nils"]
[Black "Kunin, Vitaly"]
[Result "1-0"]
[ECO "A50"]
[WhiteElo "2359"]
[BlackElo "2528"]
[Annotator "TA"]
[PlyCount "77"]
[EventDate "2022.08.14"]
[EventType "swiss"]
[EventCountry "GER"]
[SourceTitle "playchess.com"]
[Source "ChessBase"]
[SourceQuality "1"]
[TimeControl "40/5400+30:1800+30"]

{[%evp 9,77,13,0,0,20,20,22,26,20,20,25,22,14,6,23,0,0,0,8,-20,11,6,4,0,8,12,46,-11,0,0,0,0,0,0,0,5,1,0,25,22,18,18,28,28,54,0,31,0,0,0,30,0,14,4,526,526,526,520,1062,1020,922,562,29987,29988,29987,29988,29989,29990,29990,29991]} 1. d4 {[%emt 0:00:02]} Nf6 {[%emt 0:00:34]} 2. c4 {[%emt 0:00:14]} b6 {[%emt 0:00:13]} 3. f3 {[%emt 0:02:11]} Nc6 {[%emt 0:00:36]} 4. e4 {[%emt 0:03:42]} e5 {[%emt 0:01:21]} 5. Ne2 {[%emt 0:04:55]} exd4 {[%emt 0:05:18]} 6. Nxd4 {[%emt 0:00:29] A50: Queen's Fianchetto Defence (1 d4 Nf6 2 c4 b6).} Nxd4 {[%emt 0:00:44]} 7. Qxd4 {[%emt 0:00:09]} Bc5 {[%emt 0:00:37]} 8. Qe5+ {[%emt 0:02:31] The position is equal.} Be7 {[%emt 0:01:20]} 9. Bf4 {[%emt 0:09:58]} d6 {[%emt 0:09:02]} 10. Qd4 {[%emt 0:00:13]} O-O {[%emt 0:03:07]} 11. Nc3 {[%emt 0:00:16] [#]} Bb7 $146 {[%emt 0:02:59]} ({Predecessor:} 11... Nd7 12. Nd5 Nc5 13. O-O-O Ne6 14. Qd2 Nxf4 15. Nxe7+ Qxe7 16. Qxf4 a6 17. a3 f6 {0-1 (118) Roshka,Y (2353)-Bagi,M (2459) Pardubice 2019}) 12. Be2 {[%emt 0:06:02]} Nh5 {[%emt 0:05:35]} 13. Be3 {[%emt 0:00:20]} Bg5 {[%emt 0:00:41]} 14. O-O {[%emt 0:01:09] [#] And now f4 would win.} Nf4 {[%emt 0:05:50]} (14... Bf4 $5 {[%cal Rc7c5]} 15. Nd5 Bxd5 16. cxd5 Qg5 $15) 15. Rfe1 {[%emt 0:03:28]} f5 {[%emt 0:10:27]} 16. exf5 {[%emt 0:10:44]} Rxf5 {[%emt 0:01:04]} 17. Bf1 {[%emt 0:01:21]} Qd7 {[%emt 0:05:50]} 18. Ne2 {[%emt 0:12:39]} (18. Qd2 $1 $14) 18... Ne6 {[%emt 0:05:13]} 19. Qd2 {[%emt 0:00:23]} Bxe3+ {[%emt 0:01:18]} 20. Qxe3 {[%emt 0:00:02]} Re5 {[%emt 0:04:16]} 21. Qd2 {[%emt 0:05:14]} Re8 {[%emt 0:03:43]} 22. Nc3 {[%emt 0:04:56] Threatens to win with Rxe5.} Nd4 {[%emt 0:01:46]} 23. Nb5 {[%emt 0:07:44]} Nxb5 {[%emt 0:16:23]} 24. Rxe5 {[%emt 0:02:52]} Rxe5 {[%emt 0:00:17]} 25. cxb5 {[%emt 0:00:02]} h5 {[%emt 0:05:25]} 26. Rc1 {[%emt 0:05:12]} Qf7 {[%emt 0:06:12]} 27. Rc4 {[%emt 0:02:23]} ({Better is} 27. Rc3 $14) 27... Bd5 {[%emt 0:00:51]} 28. Ra4 {[%emt 0:01:17][%cal Bc4a4,Ba4a7,Ba7e7][%mdl 32]} Bxa2 {[%emt 0:00:46]} 29. Rxa7 {[%emt 0:00:23] Strongly threatening Qc2.} Bd5 {[%emt 0:01:29]} 30. Bd3 {[%emt 0:04:19]} Re7 {[%emt 0:01:42]} 31. h4 {[%emt 0:03:00]} c5 $2 {[%emt 0:00:35][%mdl 8192] [#] Black cannot hold the game after this.} (31... Re5 $11 {and Black has nothing to worry.}) 32. Bg6 $1 $18 {[%emt 0:01:30][%mdl 512]} Qxg6 {[%emt 0:00:36]} 33. Rxe7 {[%emt 0:01:49][%mdl 4096] Endgame KQR-KQB} Bf7 {[%emt 0:00:03]} (33... Bxf3 $142 34. Qg5 Qxg5 35. hxg5 Bd5) 34. Rd7 {[%emt 0:01:09]} d5 {[%emt 0:00:04]} 35. Qg5 {[%emt 0:01:06]} Qd3 {[%emt 0:01:31]} 36. Qd8+ {[%emt 0:00:39] White mates.} Kh7 {[%emt 0:00:06]} 37. Rxf7 {[%emt 0:00:22]} Qe3+ {[%emt 0:00:34]} 38. Kh2 {[%emt 0:00:12]} Qe5+ {[%emt 0:00:07]} 39. f4 {[%emt 0:00:21] Weighted Error Value: White=0.21 (precise) /Black=0.55} 1-0

[Event "93rd German Championship 2022"]
[Site "Magdeburg"]
[Date "2022.08.14"]
[Round "1.2"]
[White "Poetsch, Hagen"]
[Black "Costa, Leonardo"]
[Result "1-0"]
[ECO "B12"]
[WhiteElo "2500"]
[BlackElo "2316"]
[Annotator "TA"]
[PlyCount "57"]
[EventDate "2022.08.14"]
[EventType "swiss"]
[EventCountry "GER"]
[SourceTitle "playchess.com"]
[Source "ChessBase"]
[SourceQuality "1"]
[TimeControl "40/5400+30:1800+30"]

{[%evp 11,57,0,7,0,0,0,0,0,-20,0,0,0,0,0,0,0,0,0,0,0,0,0,0,0,16,25,145,155,138,138,259,257,762,752,1460,694,673,665,739,729,1223,1223,1201,1182,12838,12839,12830,9109]} 1. e4 {[%emt 0:00:03]} c6 {[%emt 0:00:05]} 2. d4 {[%emt 0:00:08]} d5 {[%emt 0:00:04]} 3. e5 {[%emt 0:00:05]} Bf5 {[%emt 0:00:03]} 4. h4 {[%emt 0:00:07]} h5 {[%emt 0:00:09]} 5. c4 {[%emt 0:00:15]} e6 {[%emt 0:00:06]} 6. Nc3 {[%emt 0:00:05]} Ne7 {[%emt 0:00:11]} 7. Nge2 $1 {[%emt 0:00:21] The main line 7.Nge2 scores better than 7.Bg5. B12: Caro-Kann: Advance Variation.} Nd7 {[%emt 0:00:21]} 8. Ng3 {[%emt 0:00:09]} Bg6 {[%emt 0:00:04]} 9. Bg5 {[%emt 0:02:10] The position is equal.} Qb6 {[%emt 0:00:13]} 10. Rc1 {[%emt 0:04:26]} Qxb2 {[%emt 0:24:36]} 11. Bd3 $1 {[%emt 0:02:33]} Bxd3 {[%emt 0:12:20]} 12. Qxd3 {[%emt 0:00:08]} dxc4 {[%emt 0:00:06]} 13. Qxc4 {[%emt 0:04:41]} Nb6 {[%emt 0:03:14]} 14. Qd3 {[%emt 0:01:21]} Ned5 {[%emt 0:02:18]} 15. O-O {[%emt 0:09:50]} Qa3 {[%emt 0:00:52]} 16. Nge4 {[%emt 0:20:23]} Bb4 {[%emt 0:12:00] Threatens to win with ...Bxc3.} 17. Qf3 {[%emt 0:03:38] [#]} Nc4 $146 {[%emt 0:00:21]} ({Predecessor:} 17... Ne7 18. Rfd1 Nf5 19. Rd3 Qa5 20. Rb1 Rc8 21. Ne2 Rc7 22. Nf4 Nd5 23. Nxh5 Qxa2 24. Rbd1 g6 25. Nhf6+ Kf8 26. g4 Nxf6 27. Bxf6 Ng7 28. Bxg7+ {1-0 (28) Kadric,D (2558)-Doric,D (2467) Mali Losinj 2019}) 18. Qe2 {[%emt 0:09:15]} Nxc3 {[%emt 0:08:22]} (18... Qa6 $11 {keeps the balance.}) 19. Rxc3 $16 {[%emt 0:07:54]} ({But not} 19. Nxc3 $6 Bxc3 20. Qxc4 Ba5 $11) 19... Bxc3 {[%emt 0:02:55]} 20. Qxc4 {[%emt 0:00:08]} Bb4 {[%emt 0:02:05]} (20... O-O $16 {was called for.}) 21. Rb1 $18 {[%emt 0:00:47]} a5 {[%emt 0:03:00] [#]} (21... O-O 22. Rxb4 b5) 22. Qc2 $1 {[%emt 0:05:27] White is clearly winning.} Be7 {[%emt 0:14:21]} 23. Bc1 {[%emt 0:03:37]} (23. Rxb7 $142 Rc8 24. Rxe7+ Qxe7 25. Bxe7) 23... Qb4 {[%emt 0:00:05]} 24. Rxb4 {[%emt 0:00:07]} axb4 {[%emt 0:00:04]} 25. Bg5 {[%emt 0:01:11]} Ra5 {[%emt 0:02:48]} 26. Bxe7 {[%emt 0:02:11]} Kxe7 {[%emt 0:00:06]} 27. Qd2 {[%emt 0:00:14]} Ra4 {[%emt 0:02:49]} 28. Qg5+ {[%emt 0:00:34]} Kd7 {[%emt 0:00:12]} 29. Nc5+ {[%emt 0:00:07] Weighted Error Value: White=0.33/Black=0.27 (precise)} 1-0

[Event "93rd German Championship 2022"]
[Site "Magdeburg"]
[Date "2022.08.14"]
[Round "1.3"]
[White "Colbow, Collin"]
[Black "Feuerstack, Aljoscha"]
[Result "1/2-1/2"]
[ECO "B40"]
[WhiteElo "2325"]
[BlackElo "2473"]
[Annotator "TA"]
[PlyCount "80"]
[EventDate "2022.08.14"]
[EventType "swiss"]
[EventCountry "GER"]
[SourceTitle "playchess.com"]
[Source "ChessBase"]
[SourceQuality "1"]
[TimeControl "40/5400+30:1800+30"]

{[%evp 12,80,39,37,43,30,47,32,37,27,39,21,23,23,30,20,22,33,40,35,144,118,118,141,129,85,91,70,93,81,85,50,59,15,13,11,81,92,85,96,83,66,88,0,18,0,0,0,0,1,5,0,0,0,0,0,0,0,0,0,0,0,0,0,0,0,0,0,0,0,0]} 1. e4 {[%emt 0:00:03]} c5 {[%emt 0:00:05]} 2. Nf3 {[%emt 0:00:11][%cal Bg1f3,Bf3d4,Bd4b5,Bb5c7][%mdl 32]} e6 {[%emt 0:00:06]} 3. d4 {[%emt 0:00:04]} cxd4 {[%emt 0:00:03]} 4. Nxd4 {[%emt 0:00:06]} Nf6 {[%emt 0:00:04]} 5. Nc3 {[%emt 0:00:05]} Nc6 {[%emt 0:00:04]} 6. Ndb5 {[%emt 0:00:12]} Bc5 {[%emt 0:00:06]} 7. Bf4 {[%emt 0:00:43] 7.Bf4 is better than 7.Nd6+.} O-O {[%emt 0:00:08] B45: Sicilian Four Knights.} 8. Bc7 {[%emt 0:00:16]} Qe7 {[%emt 0:00:05] Strongly threatening ...d5.} 9. Bd6 $1 {[%emt 0:00:04]} Bxd6 {[%emt 0:00:04] White is slightly better.} 10. Qxd6 {[%emt 0:00:05]} Qd8 {[%emt 0:00:03]} 11. Nc7 {[%emt 0:00:33]} Rb8 {[%emt 0:00:31][%cal Ob7b5]} 12. Be2 {[%emt 0:00:38]} b5 {[%emt 0:00:37]} 13. e5 {[%emt 0:00:06]} ({Weaker is} 13. Bxb5 Rb7 14. e5 (14. Bxc6 dxc6 15. Qxd8 Rxd8 $17) 14... Nh5 15. Bxc6 dxc6 16. Qxd8 Rxd8 $17) 13... Ne8 {[%emt 0:01:17]} 14. Nxe8 {[%emt 0:00:12] Nc7 is the strong threat.} Rxe8 {[%emt 0:00:39]} 15. O-O {[%emt 0:01:51][%cal Bh1f1,Bf1e1,Be1e5][%mdl 32] [#]} ({Reject} 15. Bxb5 Qa5 16. Bxc6 Rxb2 $15) 15... f6 $146 {[%emt 0:23:03]} (15... b4 $14 16. Ne4 Bb7) ({Predecessor:} 15... b4 16. Ne4 Qb6 17. Rfd1 Ne7 18. a4 Qxd6 19. Nxd6 Rd8 20. Rd4 Nc6 21. Re4 f5 22. exf6 gxf6 {0-1 (41) Hungaski,R (2511)-Tristan,L (2535) Villa Martelli 2021}) 16. Bxb5 {[%emt 0:22:22]} Rb6 {[%emt 0:15:46]} 17. exf6 {[%emt 0:14:26] White is much more active.} Qxf6 {[%emt 0:01:06]} 18. Bxc6 {[%emt 0:08:02]} Rxc6 {[%emt 0:01:51]} 19. Qd2 {[%emt 0:01:51]} d5 {[%emt 0:06:28]} 20. Rfe1 {[%emt 0:09:29]} Bd7 {[%emt 0:09:36][%cal Bc8d7,Bd7e8,Be8g6][%mdl 32]} 21. Rad1 {[%emt 0:06:14]} Rec8 {[%emt 0:05:27]} 22. f4 {[%emt 0:08:55]} Be8 {[%emt 0:14:47]} 23. Re5 {[%emt 0:04:52]} Rb6 {[%emt 0:05:37]} (23... h6 $11 {remains equal.}) 24. Rde1 $1 $16 {[%emt 0:05:36][%cal Oc3d5] aiming for Nxd5!} Bg6 {[%emt 0:01:15]} 25. f5 $1 {[%emt 0:08:06]} Bxf5 {[%emt 0:02:18] [#]} 26. Nxd5 $1 {[%emt 0:00:04]} Qd8 {[%emt 0:02:10][%mdl 64] [#] Pin} 27. Qa5 {[%emt 0:05:59]} ({White should try} 27. Rxf5 $1 $16 {[%cal Of5e5] And now Rfe5! would win.} exf5 28. Ne7+ (28. c4 Rb7 $11) 28... Kf8 29. Qf4) 27... Rxb2 {[%emt 0:08:48] [#] The position is equal.} 28. Rxf5 $1 {[%emt 0:01:49]} exd5 {[%emt 0:00:13]} (28... Qxa5 $2 29. Ne7+ Kh8 30. Rxa5 $16) 29. Qxa7 {[%emt 0:00:19]} h6 {[%emt 0:01:36]} 30. Qf7+ {[%emt 0:01:14]} Kh7 $1 {[%emt 0:00:19]} 31. Rxd5 {[%emt 0:00:56]} Qb6+ {[%emt 0:00:07]} 32. Kh1 {[%emt 0:00:28] Hoping for Qf5+.} Rcxc2 {[%emt 0:00:29]} 33. Qf5+ $40 {[%emt 0:00:35][%mdl 128] White is up to no good.} Qg6 {[%emt 0:00:05]} 34. Qxg6+ {[%emt 0:00:31]} Kxg6 $11 {[%emt 0:00:05][%mdl 4096] Endgame KRR-KRR} 35. a4 {[%emt 0:00:30]} Rxg2 {[%emt 0:00:31]} 36. Rg1 {[%emt 0:00:03]} Rxg1+ {[%emt 0:00:06]} 37. Kxg1 {[%emt 0:00:03]} Ra2 {[%emt 0:00:13]} 38. a5 {[%emt 0:00:39]} Kf6 {[%emt 0:00:24]} 39. Rb5 {[%emt 0:00:04]} g5 {[%emt 0:00:20]} 40. Rb6+ {[%emt 0:00:18]} Kf5 {[%emt 0:00:15] Weighted Error Value: White=0.09 (flawless) /Black=0.13 (very precise)} 1/2-1/2

[Event "93rd German Championship 2022"]
[Site "Magdeburg"]
[Date "2022.08.14"]
[Round "1.4"]
[White "Becker, Michael"]
[Black "Braun, Georg"]
[Result "0-1"]
[ECO "C00"]
[WhiteElo "2270"]
[BlackElo "2398"]
[Annotator "TA"]
[PlyCount "88"]
[EventDate "2022.08.14"]
[EventType "swiss"]
[EventCountry "GER"]
[SourceTitle "playchess.com"]
[Source "ChessBase"]
[SourceQuality "1"]
[TimeControl "40/5400+30:1800+30"]

{[%evp 9,88,-10,-8,-7,21,9,13,15,22,10,5,-48,-33,-53,-34,-54,-50,-60,-64,-41,-45,-45,-45,-119,-92,-74,-34,-36,-38,-40,-51,-86,-86,-89,-91,-102,-83,-120,-111,-167,-177,-257,-200,-255,-200,-193,-187,-193,-196,-193,-193,-226,-226,-250,-222,-263,-240,-235,-255,-265,-229,-349,-142,-334,-297,-283,-273,-290,-266,-431,-432,-435,-427,-375,-421,-384,-395,-491,-489,-1235,-1210]} 1. e4 {[%emt 0:00:11]} e6 {[%emt 0:00:20]} 2. d3 {[%emt 0:00:23]} d5 {[%emt 0:00:33]} 3. Qe2 {[%emt 0:00:17]} Nc6 {[%emt 0:01:00]} 4. Nf3 {[%emt 0:01:10]} e5 {[%emt 0:00:29]} 5. exd5 {[%emt 0:02:45]} Qxd5 {[%emt 0:00:12]} 6. Nc3 {[%emt 0:01:42] C00: French: Unusual White 2nd moves.} Bb4 {[%emt 0:00:12]} 7. Bd2 {[%emt 0:01:38]} Bxc3 {[%emt 0:00:18]} 8. Bxc3 {[%emt 0:03:10] The position is equal.} Bg4 {[%emt 0:00:20]} 9. Qe4 {[%emt 0:00:16]} Bxf3 {[%emt 0:00:23]} 10. gxf3 {[%emt 0:00:38]} ({White should play} 10. Qxf3 $11 Qxf3 11. gxf3) 10... Nf6 $15 {[%emt 0:00:16]} 11. Qxd5 {[%emt 0:07:34]} Nxd5 {[%emt 0:00:10]} 12. Bd2 {[%emt 0:00:53]} Nd4 {[%emt 0:05:37][%csl LRc2,LRf3]} 13. O-O-O {[%emt 0:00:31]} O-O-O {[%emt 0:00:32] [#]} 14. f4 $146 {[%emt 0:07:17]} ({Predecessor:} 14. Bg2 Nf4 15. Bxf4 Ne2+ 16. Kb1 Nxf4 17. Bf1 c5 18. h4 h5 19. c3 Rh6 20. Rg1 {0-1 (31) Iliaguev,N (2120)-Plazuelo Pascual,J (2256) Prague 2016}) 14... Nxf4 {[%emt 0:04:28]} 15. Bxf4 {[%emt 0:01:49]} exf4 {[%emt 0:00:09]} 16. Rg1 {[%emt 0:00:33]} (16. c3 $15) 16... Rhg8 {[%emt 0:08:09] Black is more active.} 17. h4 {[%emt 0:09:57]} f5 {[%emt 0:03:13]} 18. c3 {[%emt 0:03:00]} Nf3 {[%emt 0:01:14][%csl LRg1,LRh4]} 19. Rh1 {[%emt 0:00:07]} Ne5 {[%emt 0:13:25]} 20. d4 {[%emt 0:05:15]} Ng4 {[%emt 0:00:08]} 21. Rd2 {[%emt 0:00:46]} Rge8 $36 {[%emt 0:01:36][%mdl 2048] Strongly threatening ...Re1+. Keeping White busy.} 22. Bc4 {[%emt 0:03:09]} g6 {[%emt 0:05:02]} 23. h5 {[%emt 0:05:56]} g5 {[%emt 0:05:27]} 24. Bd3 {[%emt 0:00:26]} (24. Rg1 $17 {was worth a try.}) 24... Nh6 $19 {[%emt 0:00:28]} 25. f3 {[%emt 0:15:09]} (25. Rg1 {keeps fighting.} g4 26. Rdd1) 25... Re3 {[%emt 0:02:45]} 26. Rg1 {[%emt 0:02:28]} Rg8 {[%emt 0:00:46]} ({Weaker is} 26... Rxf3 27. Rxg5 Rf8 28. Bc2 $15 (28. Rg7 Ng4 $15)) 27. Bc4 {[%emt 0:00:54]} Rg7 {[%emt 0:00:37]} 28. Rf2 {[%emt 0:00:08]} Kd7 {[%emt 0:03:19]} 29. Kd2 {[%emt 0:02:29]} Ke7 {[%emt 0:07:46]} 30. b4 {[%emt 0:06:01]} Kf6 {[%emt 0:00:36]} 31. a4 {[%emt 0:00:26]} Nf7 {[%emt 0:01:57]} 32. a5 {[%emt 0:02:15]} Nd6 {[%emt 0:00:46]} 33. Bd3 {[%emt 0:00:43]} h6 {[%emt 0:01:51]} 34. b5 {[%emt 0:02:27]} Re8 {[%emt 0:10:29]} 35. c4 {[%emt 0:05:07] [#]} (35. Kc2 $142) 35... Rge7 {[%emt 0:01:43]} (35... Ne4+ $1 $19 {[%mdl 512] is more deadly.} 36. fxe4 fxe4) 36. Re2 $2 {[%emt 0:01:02] This move loses the game for White.} (36. c5 $17 {is the only way for White.} Nf7 37. Re2) 36... b6 {[%emt 0:03:45][%cal Od6e4]} 37. Rxe7 {[%emt 0:03:53]} Rxe7 {[%emt 0:00:08][%mdl 4096] Endgame KRB-KRN} 38. c5 {[%emt 0:00:25] [#]} Nb7 {[%emt 0:05:44]} 39. axb6 {[%emt 0:00:48]} (39. a6 Nd8 40. cxb6 cxb6 41. Bc4) 39... axb6 {[%emt 0:00:05]} 40. cxb6 {[%emt 0:00:44]} cxb6 {[%emt 0:00:31]} 41. Rc1 {[%emt 0:30:08]} g4 {[%emt 0:42:13]} 42. Rc6+ {[%emt 0:05:39] [#]} Re6 $1 {[%emt 0:00:55]} ({Stronger than} 42... Kg5 43. Rxb6 gxf3 44. Rc6 $17) 43. Rc8 {[%emt 0:00:25]} ({Don't play} 43. Bxf5 Kxf5 44. fxg4+ Kf6) 43... Nd6 {[%emt 0:00:00]} 44. fxg4 {[%emt 0:00:00]} (44. Rh8 $142 Kg7 45. Rb8) 44... Nxc8 {[%emt 0:00:00] Weighted Error Value: White=0.40/Black=0.15 (very precise)} 0-1

[Event "93rd German Championship 2022"]
[Site "Magdeburg"]
[Date "2022.08.14"]
[Round "1.5"]
[White "Vogel, Roven"]
[Black "Boder, Jan"]
[Result "0-1"]
[ECO "A45"]
[WhiteElo "2465"]
[BlackElo "2315"]
[Annotator "TA"]
[PlyCount "76"]
[EventDate "2022.08.14"]
[EventType "swiss"]
[EventCountry "GER"]
[SourceTitle "playchess.com"]
[Source "ChessBase"]
[SourceQuality "1"]
[TimeControl "40/5400+30:1800+30"]

{[%evp 9,76,-18,0,0,4,0,0,0,33,28,11,0,19,-10,20,-6,9,0,0,4,10,3,35,43,38,38,32,35,52,28,21,21,17,22,48,60,59,73,60,59,107,67,67,0,0,0,0,6,62,0,0,0,0,0,58,61,62,64,69,61,78,78,111,108,99,99,112,110,109]} 1. d4 {[%emt 0:00:03]} Nf6 {[%emt 0:00:31]} 2. Nc3 {[%emt 0:00:15]} d5 {[%emt 0:02:23]} 3. Bf4 {[%emt 0:00:08]} e6 {[%emt 0:01:52]} 4. Nb5 {[%emt 0:00:41]} Na6 {[%emt 0:02:17][%cal Bb8a6,Ba6c7,Bc7e8,Be8d6,Bd6f5,Bf5h4][%mdl 32]} 5. e3 {[%emt 0:00:09]} Bb4+ {[%emt 0:20:42]} 6. c3 {[%emt 0:01:30] D00: 1 d4 d5: Unusual lines.} Be7 {[%emt 0:00:14]} 7. a4 {[%emt 0:03:49]} c6 {[%emt 0:04:58]} 8. Na3 {[%emt 0:00:10] The position is equal.} Nc7 {[%emt 0:00:33]} 9. Bd3 {[%emt 0:01:53]} O-O {[%emt 0:03:40] [#]} 10. Qf3 $146 {[%emt 0:12:28]} ({Predecessor:} 10. g4 Ne4 11. Ne2 f5 12. f3 Bh4+ 13. Ng3 Nf6 14. Qc2 h6 15. O-O-O fxg4 16. fxg4 {0-1 (38) Kisic,B (2233)-Pecurica,M (2320) Niksic 2021}) 10... Nce8 {[%emt 0:10:24]} 11. Ne2 {[%emt 0:02:04]} Nd6 {[%emt 0:02:20]} 12. Ng3 {[%emt 0:01:45]} Nf5 {[%emt 0:07:33] [#] Hoping for ...Nh4.} 13. O-O {[%emt 0:01:53]} Nh4 {[%emt 0:04:34]} 14. Qe2 {[%emt 0:03:20]} Ng6 {[%emt 0:00:57]} 15. Bg5 {[%emt 0:03:02]} Ne4 {[%emt 0:18:51] White must now prevent ...Nxg3.} 16. Bxe7 {[%emt 0:01:10]} ({Avoid the trap} 16. Nxe4 $2 dxe4 17. Bxe4 (17. Bxe7 $2 exd3 18. Qxd3 Qxe7 $19) 17... Bxg5 $19) 16... Nxg3 {[%emt 0:00:44]} 17. hxg3 {[%emt 0:01:24]} Qxe7 {[%emt 0:00:52]} 18. e4 {[%emt 0:11:53]} f5 {[%emt 0:05:21]} 19. e5 {[%emt 0:02:04]} Qg5 {[%emt 0:01:33]} 20. Nc2 {[%emt 0:07:32]} f4 {[%emt 0:06:12]} 21. Qd2 {[%emt 0:00:58]} Qh6 {[%emt 0:01:29]} 22. Bxg6 {[%emt 0:05:10]} hxg6 {[%emt 0:01:37]} 23. gxf4 {[%emt 0:00:09]} Rf5 {[%emt 0:01:25]} 24. f3 {[%emt 0:03:16]} ({And not} 24. g3 Qh3 25. Ne3 Rh5 $17) 24... b6 {[%emt 0:00:37]} (24... Rh5 $14) 25. Ne3 {[%emt 0:13:59]} Qxf4 {[%emt 0:00:48]} 26. Qf2 {[%emt 0:01:08]} ({Of course not} 26. g4 Rf7 $11) (26. a5 $14) 26... Rh5 $11 {[%emt 0:00:24][%csl Gh5][%cal Rf4h2]} 27. Ng4 {[%emt 0:01:53] Inhibits Qh2+.} Ba6 {[%emt 0:00:03]} 28. Rfd1 {[%emt 0:02:35]} Kf7 {[%emt 0:01:03]} ({Better is} 28... Bc4 $11) 29. Qd2 {[%emt 0:03:29]} (29. a5 $14) 29... Qg3 {[%emt 0:00:30] ( -> ...Rah8)} 30. Qe1 $36 {[%emt 0:01:14][%mdl 2048] White has good play.} Qf4 {[%emt 0:00:18]} 31. Kf2 {[%emt 0:01:22]} Rah8 {[%emt 0:00:42]} (31... Rf5 $11 32. Kg1 Bc4) 32. Qd2 $14 {[%emt 0:04:34]} Qxd2+ {[%emt 0:00:03]} 33. Rxd2 {[%emt 0:00:08]} Rh1 {[%emt 0:00:08]} 34. Ra3 {[%emt 0:01:27]} Rf1+ {[%emt 0:01:09] [#]} 35. Kg3 $1 {[%emt 0:00:17] White is better.} Rc1 {[%emt 0:00:42]} 36. a5 {[%emt 0:00:22] Strongly threatening axb6.} b5 {[%emt 0:00:07]} 37. b4 {[%emt 0:05:24]} Bc8 {[%emt 0:00:04]} 38. Nf2 {[%emt 0:01:15]} g5 {[%emt 0:01:11][%mdl 32768] Weighted Error Value: White=0.09 (flawless) /Black=0.17 (very precise) . Loss on time!?} 0-1